{"text_format":"1","workbook":"xlsx","n_sheets":10,"sheets":["HOME","1. SUMMARY OF INDICATORS","2. TOTAL WASTE COLLECTED ","3. TOTAL WASTE GENERATED","4. WASTE MORPHOLOGY","5. LANDFILL DEPOSITING","6. WASTE RECOVERY ","7. C&T COST COVERAGE","8. INVESTMENT FINANCING","9. SW NARRATIVE INFO"],"not_rendered":{"charts":9,"images":0,"macros":1,"external_links":0,"defined_names":9,"comments":6,"pivot_tables":0},"unopened":[],"bounds":{"document_bytes":16777216,"sheet_cells":100000,"rows_first":2000,"rows_last":500,"rows_between":2000,"halvings":0,"cell_chars":16384,"cell_head_chars":4096},"cells_cut":0,"cells_raw":0,"read":"whole","date_system":"1900"}

{"sheet":"HOME","index":0,"n_rows":49,"n_cols":7,"rows_kept":49,"cut":false,"hidden":false,"merged":[[0,0,2,10],[14,6,14,9],[17,6,17,9],[7,5,14,5],[7,6,7,9],[8,6,8,9],[9,6,9,9],[10,6,10,9],[11,6,11,9],[12,6,12,9],[13,6,13,9]]}
["Notă: Pentru ca sistemul SWIS să funcționeze în condiții bune, este necesar să activați Macros înainte de începe să introduceți datele\nNotă: Când salvați documentul folosiți opțiunea Excel Macro-Enabled Workbook\n"]
[]
[]
[]
[]
[]
[]
[null,null,null,null,null,"DATA ENTRY","2. TOTAL WASTE COLLECTED"]
[null,null,null,null,null,null,"3. TOTAL WASTE GENERATED"]
[null,null,null,null,null,null,"4. WASTE MORPHOLOGY"]
[null,null,null,null,null,null,"5. LANDFILL DEPOSITING"]
[null,null,null,null,null,null,"6. WASTE RECOVERY"]
[null,null,null,null,null,null,"7. C&T COST COVERAGE"]
[null,null,null,null,null,null,"8. INVESTMENT FINANCING"]
[null,null,null,null,null,null,"9. SW NARRATIVE INFO"]
[]
[]
[null,null,null,null,null,"RESULT","1. SUMMARY OF INDICATORS"]
[]
[]
[]
[]
[]
[]
[]
[]
[]
[]
[]
[]
[]
[]
[]
[]
[]
[]
[]
[]
[]
[]
[]
[]
[]
[]
[]
[]
[]
[]
[null,null,null,null,null,null,"Milisav Aleksic, freelance consultant, Belgrade, Serbia, milisav.aleksic@gmai.com "]

{"sheet":"1. SUMMARY OF INDICATORS","index":1,"n_rows":63,"n_cols":6,"rows_kept":63,"cut":false,"hidden":false,"merged":[]}
[null,"Perioada datelor - ANUL",{"$f":"'2. TOTAL WASTE COLLECTED '!E1","v":0}]
[null,{"$f":"'2. TOTAL WASTE COLLECTED '!B2:F2","v":0}]
[null,"Suprafața în km2",{"$f":"IFERROR('2. TOTAL WASTE COLLECTED '!C3,\"\")","v":0}]
[null,"Populația totală",{"$f":"IFERROR('2. TOTAL WASTE COLLECTED '!C4,\"\")","v":0}]
[null,"Nr. total de gospodării",{"$f":"IFERROR('2. TOTAL WASTE COLLECTED '!C5,\"\")","v":0}]
[null,"REZUMATUL INDICATORILOR PRIVIND GESTIONAREA DEȘEURILOR MUNICIPALE",null,"Variația indicatorilor","de la","până la"]
["I","COLECTAREA ȘI TRANSPORTUL DEȘEURILOR MUNICIPALE"]
[1,{"$f":"'7. C&T COST COVERAGE'!G5","v":"Nr. total  de locuitori/gospodării deservite"},{"$f":"IFERROR('7. C&T COST COVERAGE'!I5,\"\")","v":""},"> 70%",0.7,1]
[2,"Acoperirea serviciului în zonele urbane",{"$f":"IFERROR('7. C&T COST COVERAGE'!I6,\"\")","v":""},"> 90%",0.9,1]
[3,"Acoperirea serviciului în zonele rurale",{"$f":"IFERROR('7. C&T COST COVERAGE'!I7,\"\")","v":""},"> 60%",0.6,1]
[4,"Cantitatea medie de deșeuri colectate, Gospodărie/kg/zi",{"$f":"IFERROR('2. TOTAL WASTE COLLECTED '!J10,\"\")","v":""},"1,05 - 3,6kg",1.0499999999999998,3.5999999999999996]
[5,{"$f":"'3. TOTAL WASTE GENERATED'!B6","v":"Cantitatea medie de deșeuri menajere colectate per capita/ kg/zi"},{"$f":"IFERROR('3. TOTAL WASTE GENERATED'!C6,\"\")","v":""},"0,35 - 1,2kg",0.35,1.2]
[6,{"$f":"'7. C&T COST COVERAGE'!B22","v":"Cantitatea de deșeuri colectate anual per angajat/tone "},{"$f":"IFERROR('7. C&T COST COVERAGE'!C22,\"\")","v":""},"> 650 ton/Empl.",650,1600]
[7,{"$f":"'7. C&T COST COVERAGE'!B23","v":"Populație deservită per angajat din Gestionarea Deșeurilor Solide"},{"$f":"IFERROR('7. C&T COST COVERAGE'!C23,\"\")","v":""},"> 1300 PE / Empl.",1300,7000]
[8,{"$f":"'7. C&T COST COVERAGE'!B24","v":"Angajați în Gestionarea Deșeurilor Solide  per 1000 de locuitori deserviți "},{"$f":"IFERROR('7. C&T COST COVERAGE'!C24:D24,\"\")","v":""},"1 - 2 Empl/1000 PE",1,2]
[9,{"$f":"'7. C&T COST COVERAGE'!B21","v":"Raportul de angajare dintre personalul administrativ și lucrătorii operativi 1:"},{"$f":"IFERROR('7. C&T COST COVERAGE'!C21:D21,\"\")","v":""},null,14,25]
[10,{"$f":"'9. SW NARRATIVE INFO'!C55","v":"SUMA Volumului de colectare furnizat, în m3"},{"$f":"'9. SW NARRATIVE INFO'!H55","v":0},null,{"$f":"C18","v":""},{"$f":"C19","v":""}]
[11,"Volumul Serviciului în m³ necesar în condițiile ratei actuale de colectare ",{"$f":"IFERROR(('2. TOTAL WASTE COLLECTED '!C10*'2. TOTAL WASTE COLLECTED '!J10)/'2. TOTAL WASTE COLLECTED '!G10/1000,\"\")","v":""}]
[12,"Volumul Serviciului în m³ necesar în condițiile unei rate de colectare de 100%",{"$f":"IFERROR(('2. TOTAL WASTE COLLECTED '!C5*'2. TOTAL WASTE COLLECTED '!J10)/'2. TOTAL WASTE COLLECTED '!G10/1000,\"\")","v":""}]
[13,"Raportul dintre furnizare şi cerinţe în condiţiile actuale",{"$f":"IFERROR(C18/C17,\"\")","v":""},{"$f":"1:1","v":0},1,1]
[14,"Raportul dintre furnizare şi cerinţe în condițiile unei rate de colectare de 100% ",{"$f":"IFERROR(C19/C17,\"\")","v":""},null,1,1]
["II","CANTITĂȚILE DE DEȘEURI MUNICIPALE"]
[15,{"$f":"'3. TOTAL WASTE GENERATED'!L9","v":"Cantitatea totală estimată de deșeuri generate, tone/an"},{"$f":"IFERROR('3. TOTAL WASTE GENERATED'!L21,\"\")","v":0}]
[16,{"$f":"'2. TOTAL WASTE COLLECTED '!H9","v":"Cantitățile de deșeuri colectate anual, în tone"},{"$f":"'2. TOTAL WASTE COLLECTED '!H21","v":0}]
[17,"Raportul dintre deșeurile colectate în zonele urbane și rurale",{"$f":"IFERROR('7. C&T COST COVERAGE'!H6/'7. C&T COST COVERAGE'!H7,\"\")","v":""}]
[18,{"$f":"'3. TOTAL WASTE GENERATED'!M9","v":"Cantitatea de deșeuri depozitate în mod necontrolat, tone/an"},{"$f":"IFERROR('3. TOTAL WASTE GENERATED'!M21,\"\")","v":0}]
[19,"Deșeuri depozitate în mod necontrolat, % din totalul deșeurilor generate",{"$f":"IFERROR('3. TOTAL WASTE GENERATED'!N21,\"\")","v":""}]
[20,"Deșeuri depozitate în mod necontrolat, % din totalul deșeurilor colectate",{"$f":"'3. TOTAL WASTE GENERATED'!O21","v":0}]
["III","DEPOZITAREA DEȘEURILOR MUNICIPALE FĂRĂ SEPARARE"]
[21,"Cantitățile de deșeuri depozitate fără separare în depozite tradiționale de deșeuri, în %",{"$f":"IFERROR('5. LANDFILL DEPOSITING'!F24,\"\")","v":""},null,0,0]
[22,"Deșeuri municipale depozitate fără separare (în depozite ecologice de deșeuri), în %",{"$f":"IFERROR('5. LANDFILL DEPOSITING'!H24,\"\")","v":""},null,1,1]
[23,"Deşeuri municipale incinerate fără recuperarea energiei, %",{"$f":"IFERROR('5. LANDFILL DEPOSITING'!J24,\"\")","v":""},null,0,1]
["IV","DEPOZITAREA DEȘEURILOR MUNICIPALE DUPĂ SEPARARE"]
[24,"Depozitate în depozitul de deșeuri după separare, în % din cantitatea totală colectată",{"$f":"IFERROR('6. WASTE RECOVERY '!M24,\"\")","v":""},"65% - 35%",0.65,0.35]
[25,"Cantitatea medie de deșeuri menajere depozitate per capita/kg/zi",{"$f":"IFERROR(C12*C34,\"\")","v":""},"0,23 - 0,42kg/PE*day",{"$f":"E11*E34","v":0.68249999999999988},{"$f":"F11*F34","v":1.2599999999999998}]
[26,"Deșeuri separate, în % din cantitatea totală colectată",{"$f":"IFERROR('6. WASTE RECOVERY '!F24+'6. WASTE RECOVERY '!H24,\"\")","v":""},"35% - 65%",{"$f":"100%-E34","v":0.35},{"$f":"100%-F34","v":0.65}]
[27,"Cantitatea medie de deșeuri menajere separate per capita/kg/zi",{"$f":"IFERROR(C12*C36,\"\")","v":""},"0,12 - 0,78kg/PE*day",{"$f":"E36*E11","v":0.36749999999999994},{"$f":"F36*F11","v":2.34}]
["V","RECUPERAREA DEȘEURILOR MUNICIPALE DUPĂ SEPARARE"]
[28,"Deșeuri reciclate sau comercializate, inclusiv aflate în stocuri, în % din totalul deșeurilor separate",{"$f":"IFERROR('6. WASTE RECOVERY '!R24,\"\")","v":""},"0% - 80%",0,0.8]
[29,"Deșeuri incinerate cu recuperare de energie, în % din totalul deşeurilor separate  ",{"$f":"IFERROR('6. WASTE RECOVERY '!T24,\"\")","v":""},"0% - 40%",0,0.4]
[30,"Deșeuri compostate, în % din totalul deșeurilor separate",{"$f":"IFERROR('6. WASTE RECOVERY '!V24,\"\")","v":""},"0% - 65%",0,0.65]
["VI","UTILIZAREA CAPACITĂȚII DEPOZITULUI DE DEȘEURI"]
[31,{"$f":"'6. WASTE RECOVERY '!B30","v":"Capacitatea depozitului de deşeuri actual utilizată până în prezent"},{"$f":"'6. WASTE RECOVERY '!D30","v":0},"0 - 100%",0,1]
[32,{"$f":"'6. WASTE RECOVERY '!B33","v":"Durata de funcționare a depozitului de deșeuri - ani rămași la rata actuală de depozitare fără separare sau incinerare"},{"$f":"IFERROR('6. WASTE RECOVERY '!D33,\"\")","v":""},"5 - 10 years",5,10]
[33,{"$f":"'6. WASTE RECOVERY '!B32","v":"Durata de funcționare a depozitului de deșeuri - ani rămași după separare, reciclare și recuperare"},{"$f":"IFERROR('6. WASTE RECOVERY '!D32,\"\")","v":""},"> 30 years",5,30]
[34,{"$f":"'6. WASTE RECOVERY '!B27","v":"Cantitatea medie de deşeuri depozitate  înainte de separare, în tone pe zi"},{"$f":"IFERROR('6. WASTE RECOVERY '!D27,\"\")","v":""}]
[35,{"$f":"'6. WASTE RECOVERY '!B28","v":"Cantitatea medie de deşeuri depozitate  după separare, în tone pe zi"},{"$f":"IFERROR('6. WASTE RECOVERY '!D28,\"\")","v":""}]
["VII","COSTUL CURENT, INVESTIŢIILE PLANIFICATE ŞI COSTURILE ESTIMATE, ÎN LEI"]
[null,"Per Lei/tonă"]
[36,{"$f":"'7. C&T COST COVERAGE'!B25","v":"Costul actual pentru colectarea și transportul unei tone de deșeuri, în lei"},{"$f":"IFERROR('7. C&T COST COVERAGE'!C25,\"\")","v":""},null,10,45]
[37,{"$f":"'8. INVESTMENT FINANCING'!B68","v":"Creșterea estimată a costurilor de colectare și transport al deșeurilor, în lei/tonă"},{"$f":"IFERROR('8. INVESTMENT FINANCING'!C68,\"\")","v":""}]
[38,{"$f":"'8. INVESTMENT FINANCING'!B67","v":"Costul estimat de colectare și transport,inclusiv creșterile pentru investțiile în echipament, în lei/tonă"},{"$f":"IFERROR('8. INVESTMENT FINANCING'!C67,\"\")","v":""}]
[39,{"$f":"'8. INVESTMENT FINANCING'!E67","v":"Creşterea estimată a cheltuielilor pentru investiţii în reciclarea, recuperarea şi depozitarea cantităţilor de deşeuri colectate, În lei/tona"},{"$f":"IFERROR('8. INVESTMENT FINANCING'!F67,\"\")","v":""}]
[40,{"$f":"'8. INVESTMENT FINANCING'!E68","v":"Costul total estimat al Gestionării Deșeurilor Solide (colectare, transport, tratare şi depozitarea deşeurilor), inlcusiv pentru investiții, în lei/tonă"},{"$f":"IFERROR('8. INVESTMENT FINANCING'!F68,\"\")","v":""},null,60,120]
[null,"Per Gospodărie"]
[41,"Costul actual de colectare și transport al deșeurilor, per Gospodărie/An, în Lei",{"$f":"IFERROR('2. TOTAL WASTE COLLECTED '!J10*365/1000*C50,\"\")","v":""}]
[42,"Creșterea estimată a costurilor de colectare și transport al deșeurilor, per Gospodărie/An, în Lei",{"$f":"IFERROR(C58-C56,\"\")","v":""}]
[43,"Costul estimat de colectare și transport al  deșeurilor, per Gospodărie/An, în Lei",{"$f":"IFERROR('2. TOTAL WASTE COLLECTED '!J10*365/1000*'8. INVESTMENT FINANCING'!C67,\"\")","v":""}]
[44,"Creşterea estimată a cheltuielilor pentru investiţii în reciclarea, recuperarea şi depozitarea cantităţilor de deşeuri colectate, per Gospodărie/an, în Lei",{"$f":"IFERROR('2. TOTAL WASTE COLLECTED '!J10*365/1000*'8. INVESTMENT FINANCING'!F67,\"\")","v":""}]
[45,"Costul total estimat al Gestionării Deșeurilor Solide (colectare, transport, tratare şi depozitarea deşeurilor), inlcusiv pentru investiții, per Gospodărie/an, în Lei",{"$f":"IFERROR('2. TOTAL WASTE COLLECTED '!J10*365/1000*C54,\"\")","v":""}]
[]
[]
[null,"Acasă "]

{"sheet":"2. TOTAL WASTE COLLECTED ","index":2,"n_rows":22,"n_cols":10,"rows_kept":22,"cut":false,"hidden":false,"merged":[[0,4,0,5],[1,1,1,5],[0,2,0,3],[21,1,23,2],[21,3,40,9],[6,2,6,9]]}
[null,"MUNICIPALITATEA","Perioada datelor - ANUL"]
[]
[null,"Suprafața în km2"]
[null,"Populația totală"]
[null,"Nr. total de gospodării"]
[null,"Nr. mediu de pembri per gospodărie",{"$f":"C4/C5","v":{"$error":"#DIV/0!"}}]
[null,null,"TOTALUL DEŞEURILOR MUNICIPALE COLECTATE DE LA GENERATORII DE DEŞEURI DESERVIȚI"]
[null,null,1,2,2.1,3,4,5,null,6]
[null,"ORIGINEA DEȘEURILOR","Numărul total de generatori de deșeuri deserviți  ","Cantitatea de deșeuri colectate anual în unitățile selectate (coloana 2.1)","Unitatea de măsură selectată","Cantitățile colectate, în % din total","Densitatea medie a deșeurilor (factorul de conversie) (t/m3)","Cantitățile de deșeuri colectate anual, în tone",null,"Cantitatea medie de deșeuri colectate, Gospodărie/kg/zi"]
[1,"Deșeuri menajere mixte",null,null,null,{"$f":"I10/$H$21","v":{"$error":"#DIV/0!"}},null,{"$f":"IF(C10=0,D10=0,IF(D10=0,C10=0,D10*G10))","v":true},{"$f":"IFERROR(VALUE(H10),0)","v":0},{"$f":"((H10/C10)/365)*1000","v":{"$error":"#DIV/0!"}}]
[2,"Deşeuri municipale din zonele publice ",null,null,null,{"$f":"I11/$H$21","v":{"$error":"#DIV/0!"}},null,{"$f":"IF(C11=0,D11=0,IF(D11=0,C11=0,D11*G11))","v":true},{"$f":"IFERROR(VALUE(H11),0)","v":0},{"$f":"((H11/C11)/365)*1000","v":{"$error":"#DIV/0!"}}]
[3,"Deșeuri municipale voluminoase ",null,null,null,{"$error":"#DIV/0!"},null,true,{"$f":"IFERROR(VALUE(H12),0)","v":0},{"$error":"#DIV/0!"}]
[4,"Entităţi comerciale",null,null,null,{"$error":"#DIV/0!"},null,true,0,{"$error":"#DIV/0!"}]
[5,"Instituţii (Municipale şi altele)",null,null,null,{"$error":"#DIV/0!"},null,true,0,{"$error":"#DIV/0!"}]
[6,"Deșeuri industriale nepericuloase",null,null,null,{"$error":"#DIV/0!"},null,true,0,{"$error":"#DIV/0!"}]
[7,"Deșeuri din construcții",null,null,null,{"$error":"#DIV/0!"},null,true,0,{"$error":"#DIV/0!"}]
[8,"Deșeuri organice din agricultură",null,null,null,{"$error":"#DIV/0!"},null,true,0,{"$error":"#DIV/0!"}]
[9,"Alte deșeuri",null,null,null,{"$error":"#DIV/0!"},null,true,0,{"$error":"#DIV/0!"}]
[10,"Alte deșeuri",null,null,null,{"$error":"#DIV/0!"},null,true,0,{"$error":"#DIV/0!"}]
[11,"Alte deșeuri",null,null,null,{"$error":"#DIV/0!"},null,true,0,{"$error":"#DIV/0!"}]
[null,"TOTAL",null,null,null,{"$f":"SUM(F10:F20)","v":{"$error":"#DIV/0!"}},null,{"$f":"SUM(H10:H20)","v":0}]
[null,"Acasă ",null,"Note:"]

{"sheet":"3. TOTAL WASTE GENERATED","index":3,"n_rows":23,"n_cols":14,"rows_kept":23,"cut":false,"hidden":false,"merged":[[22,1,24,2],[22,3,42,14],[0,4,0,5],[0,7,0,8],[1,1,1,8],[0,2,0,3],[6,2,6,14]]}
[null,{"$f":"'2. TOTAL WASTE COLLECTED '!B1","v":"MUNICIPALITATEA"},{"$f":"'2. TOTAL WASTE COLLECTED '!C1","v":"Perioada datelor - ANUL"},null,{"$f":"'2. TOTAL WASTE COLLECTED '!E1:F1","v":0},null,null,{"$f":"'2. TOTAL WASTE COLLECTED '!E1","v":0}]
[null,{"$f":"'2. TOTAL WASTE COLLECTED '!B2","v":0}]
[null,"Populația totală",{"$f":"'2. TOTAL WASTE COLLECTED '!C4","v":0}]
[null,"Nr. total de gospodării",{"$f":"'2. TOTAL WASTE COLLECTED '!C5","v":0}]
[null,"Nr. mediu de pembri per gospodărie",{"$f":"C3/C4","v":{"$error":"#DIV/0!"}}]
[null,"Cantitatea medie de deșeuri menajere colectate per capita/ kg/zi",{"$f":"(L21/C3/365*1000)","v":{"$error":"#DIV/0!"}}]
[null,null,"TOTALUL DEŞEURILOR MUNICIPALE GENERATE DE TOATE SURSELE DE  PRODUCERE,"]
[null,null,1,2,null,null,2,3,4,5,6,7,8,9]
[null,"ORIGINEA DEȘEURILOR","Numărul total de generatori de deșeuri deserviți  ","Numărul total de generatori de deşeuri existenți, inclusiv cei deserviți","Quantity of waste collected annually in m3","% of Total Collected","Average waste density conversion factor","Diferenţa dintre numărul de generatori de deşeuri existenți și cei deserviți","Cantitatea de deșeuri colectate anual, în tone","Acoperirea estimatimativă a serviciului, în % din cantitățile totale","Cantitatea totală medie estimată  a deşeurilor generate (care nu sunt colectate),  în tone","Cantitatea totală estimată de deșeuri generate, tone/an","Cantitatea de deșeuri depozitate în mod necontrolat, tone/an","Estimarea eliminării necontrolate a deșeurilor în % din deșeurile generate"]
[1,{"$f":"'2. TOTAL WASTE COLLECTED '!B10","v":"Deșeuri menajere mixte"},{"$f":"'2. TOTAL WASTE COLLECTED '!C10","v":0},null,{"$f":"IF('2. TOTAL WASTE COLLECTED '!H10=FALSE,'2. TOTAL WASTE COLLECTED '!D10=0,'2. TOTAL WASTE COLLECTED '!D10)","v":0},{"$f":"E10/$E$21","v":{"$error":"#DIV/0!"}},{"$f":"'2. TOTAL WASTE COLLECTED '!G10","v":0},{"$f":"D10-C10","v":0},{"$f":"E10*G10","v":0},{"$f":"C10/D10","v":{"$error":"#DIV/0!"}},{"$f":"IFERROR((I10*(1-J10))/J10,0)","v":0},{"$f":"IFERROR(IF(J10=0,K10,I10/J10),0)","v":0},{"$f":"L10-I10","v":0},{"$f":"M10/L10","v":{"$error":"#DIV/0!"}}]
[2,{"$f":"'2. TOTAL WASTE COLLECTED '!B11","v":"Deşeuri municipale din zonele publice "},{"$f":"'2. TOTAL WASTE COLLECTED '!C11","v":0},null,{"$f":"IF('2. TOTAL WASTE COLLECTED '!H11=FALSE,'2. TOTAL WASTE COLLECTED '!D11=0,'2. TOTAL WASTE COLLECTED '!D11)","v":0},{"$error":"#DIV/0!"},{"$f":"'2. TOTAL WASTE COLLECTED '!G11","v":0},{"$f":"D11-C11","v":0},0,{"$f":"C11/D11","v":{"$error":"#DIV/0!"}},{"$f":"IFERROR((I11*(1-J11))/J11,0)","v":0},{"$f":"IFERROR(IF(J11=0,K11,I11/J11),0)","v":0},{"$f":"L11-I11","v":0},{"$error":"#DIV/0!"}]
[3,{"$f":"'2. TOTAL WASTE COLLECTED '!B12","v":"Deșeuri municipale voluminoase "},{"$f":"'2. TOTAL WASTE COLLECTED '!C12","v":0},null,{"$f":"IF('2. TOTAL WASTE COLLECTED '!H12=FALSE,'2. TOTAL WASTE COLLECTED '!D12=0,'2. TOTAL WASTE COLLECTED '!D12)","v":0},{"$error":"#DIV/0!"},{"$f":"'2. TOTAL WASTE COLLECTED '!G12","v":0},0,{"$f":"E12*G12","v":0},{"$error":"#DIV/0!"},0,0,0,{"$error":"#DIV/0!"}]
[4,{"$f":"'2. TOTAL WASTE COLLECTED '!B13","v":"Entităţi comerciale"},{"$f":"'2. TOTAL WASTE COLLECTED '!C13","v":0},null,{"$f":"IF('2. TOTAL WASTE COLLECTED '!H13=FALSE,'2. TOTAL WASTE COLLECTED '!D13=0,'2. TOTAL WASTE COLLECTED '!D13)","v":0},{"$error":"#DIV/0!"},{"$f":"'2. TOTAL WASTE COLLECTED '!G13","v":0},0,0,{"$error":"#DIV/0!"},0,0,0,{"$error":"#DIV/0!"}]
[5,{"$f":"'2. TOTAL WASTE COLLECTED '!B14","v":"Instituţii (Municipale şi altele)"},{"$f":"'2. TOTAL WASTE COLLECTED '!C14","v":0},null,{"$f":"IF('2. TOTAL WASTE COLLECTED '!H14=FALSE,'2. TOTAL WASTE COLLECTED '!D14=0,'2. TOTAL WASTE COLLECTED '!D14)","v":0},{"$error":"#DIV/0!"},{"$f":"'2. TOTAL WASTE COLLECTED '!G14","v":0},0,0,{"$error":"#DIV/0!"},0,0,0,{"$error":"#DIV/0!"}]
[6,{"$f":"'2. TOTAL WASTE COLLECTED '!B15","v":"Deșeuri industriale nepericuloase"},{"$f":"'2. TOTAL WASTE COLLECTED '!C15","v":0},null,{"$f":"IF('2. TOTAL WASTE COLLECTED '!H15=FALSE,'2. TOTAL WASTE COLLECTED '!D15=0,'2. TOTAL WASTE COLLECTED '!D15)","v":0},{"$error":"#DIV/0!"},{"$f":"'2. TOTAL WASTE COLLECTED '!G15","v":0},0,0,{"$error":"#DIV/0!"},0,0,0,{"$error":"#DIV/0!"}]
[7,{"$f":"'2. TOTAL WASTE COLLECTED '!B16","v":"Deșeuri din construcții"},{"$f":"'2. TOTAL WASTE COLLECTED '!C16","v":0},null,{"$f":"IF('2. TOTAL WASTE COLLECTED '!H16=FALSE,'2. TOTAL WASTE COLLECTED '!D16=0,'2. TOTAL WASTE COLLECTED '!D16)","v":0},{"$error":"#DIV/0!"},{"$f":"'2. TOTAL WASTE COLLECTED '!G16","v":0},0,0,{"$error":"#DIV/0!"},0,0,0,{"$error":"#DIV/0!"}]
[8,{"$f":"'2. TOTAL WASTE COLLECTED '!B17","v":"Deșeuri organice din agricultură"},{"$f":"'2. TOTAL WASTE COLLECTED '!C17","v":0},null,{"$f":"IF('2. TOTAL WASTE COLLECTED '!H17=FALSE,'2. TOTAL WASTE COLLECTED '!D17=0,'2. TOTAL WASTE COLLECTED '!D17)","v":0},{"$error":"#DIV/0!"},{"$f":"'2. TOTAL WASTE COLLECTED '!G17","v":0},0,0,{"$error":"#DIV/0!"},0,0,0,{"$error":"#DIV/0!"}]
[9,{"$f":"'2. TOTAL WASTE COLLECTED '!B18","v":"Alte deșeuri"},{"$f":"'2. TOTAL WASTE COLLECTED '!C18","v":0},null,{"$f":"IF('2. TOTAL WASTE COLLECTED '!H18=FALSE,'2. TOTAL WASTE COLLECTED '!D18=0,'2. TOTAL WASTE COLLECTED '!D18)","v":0},{"$error":"#DIV/0!"},{"$f":"'2. TOTAL WASTE COLLECTED '!G18","v":0},0,0,{"$error":"#DIV/0!"},0,0,0,{"$error":"#DIV/0!"}]
[10,{"$f":"'2. TOTAL WASTE COLLECTED '!B19","v":"Alte deșeuri"},{"$f":"'2. TOTAL WASTE COLLECTED '!C19","v":0},null,{"$f":"IF('2. TOTAL WASTE COLLECTED '!H19=FALSE,'2. TOTAL WASTE COLLECTED '!D19=0,'2. TOTAL WASTE COLLECTED '!D19)","v":0},{"$f":"E19/$E$21","v":{"$error":"#DIV/0!"}},{"$f":"'2. TOTAL WASTE COLLECTED '!G19","v":0},{"$f":"D19-C19","v":0},{"$f":"E19*G19","v":0},{"$f":"C19/D19","v":{"$error":"#DIV/0!"}},0,0,{"$f":"L19-I19","v":0},{"$f":"M19/L19","v":{"$error":"#DIV/0!"}}]
[11,{"$f":"'2. TOTAL WASTE COLLECTED '!B20","v":"Alte deșeuri"},{"$f":"'2. TOTAL WASTE COLLECTED '!C20","v":0},null,{"$f":"IF('2. TOTAL WASTE COLLECTED '!H20=FALSE,'2. TOTAL WASTE COLLECTED '!D20=0,'2. TOTAL WASTE COLLECTED '!D20)","v":0},{"$error":"#DIV/0!"},{"$f":"'2. TOTAL WASTE COLLECTED '!G20","v":0},0,0,{"$error":"#DIV/0!"},0,0,0,{"$error":"#DIV/0!"}]
[null,"TOTAL",null,null,{"$f":"SUM(E10:E20)","v":0},null,null,null,{"$f":"SUM(I10:I20)","v":0},null,{"$f":"SUM(K10:K20)","v":0},{"$f":"SUM(L10:L20)","v":0},{"$f":"SUM(M10:M20)","v":0},{"$f":"M21/L21","v":{"$error":"#DIV/0!"}}]
[]
[null,"Acasă ",null,"Note:  "]

{"sheet":"4. WASTE MORPHOLOGY","index":4,"n_rows":24,"n_cols":9,"rows_kept":24,"cut":false,"hidden":false,"merged":[[1,1,1,5],[1,7,1,11],[0,1,0,2],[23,1,25,3],[23,5,38,13]]}
[null,{"$f":"'2. TOTAL WASTE COLLECTED '!B1","v":"MUNICIPALITATEA"},null,{"$f":"'2. TOTAL WASTE COLLECTED '!C1","v":"Perioada datelor - ANUL"},{"$f":"'2. TOTAL WASTE COLLECTED '!E1:F1","v":0}]
[null,{"$f":"'2. TOTAL WASTE COLLECTED '!B2","v":0}]
[]
[null,1,2,3,4,5]
[null,"STRUCTURA DEȘEURILOR MUNICIPALE COLECTATE ÎN AMESTEC ","Conținutul mediu estimat","Cantitatățile de deșeuri colectate, în tone","Căntitățile de deșeuri generate, în tone","Cantitățile necontrolate, în tone",null,null,"Estimated Average Density t/m3"]
[1,"Deșeuri de grădină",null,{"$f":"'2. TOTAL WASTE COLLECTED '!$H$21*C6","v":0},{"$f":"'3. TOTAL WASTE GENERATED'!$L$21*C6","v":0},{"$f":"E6-D6","v":0},null,null,0.1]
[2,"Alte deseuri biodegradabile",null,{"$f":"'2. TOTAL WASTE COLLECTED '!$H$21*C7","v":0},{"$f":"'3. TOTAL WASTE GENERATED'!$L$21*C7","v":0},{"$f":"E7-D7","v":0},null,null,0.14399999999999999]
[3,"Hârtie",null,{"$f":"'2. TOTAL WASTE COLLECTED '!$H$21*C8","v":0},{"$f":"'3. TOTAL WASTE GENERATED'!$L$21*C8","v":0},0,null,null,0.33300000000000002]
[4,"Sticlă",null,{"$f":"'2. TOTAL WASTE COLLECTED '!$H$21*C9","v":0},{"$f":"'3. TOTAL WASTE GENERATED'!$L$21*C9","v":0},0,null,null,0.64]
[5,"Carton",null,{"$f":"'2. TOTAL WASTE COLLECTED '!$H$21*C10","v":0},{"$f":"'3. TOTAL WASTE GENERATED'!$L$21*C10","v":0},0,null,null,0.57569999999999999]
[6,"Carton cu ceară",null,{"$f":"'2. TOTAL WASTE COLLECTED '!$H$21*C11","v":0},{"$f":"'3. TOTAL WASTE GENERATED'!$L$21*C11","v":0},0,null,null,0.32]
[7,"Carton cu aluminiu",null,{"$f":"'2. TOTAL WASTE COLLECTED '!$H$21*C12","v":0},{"$f":"'3. TOTAL WASTE GENERATED'!$L$21*C12","v":0},0,null,null,0.1]
[8,"Metal- ambalaje și altele",null,{"$f":"'2. TOTAL WASTE COLLECTED '!$H$21*C13","v":0},{"$f":"'3. TOTAL WASTE GENERATED'!$L$21*C13","v":0},0]
[9,"Metal- cutii de aluminiu",null,{"$f":"'2. TOTAL WASTE COLLECTED '!$H$21*C14","v":0},{"$f":"'3. TOTAL WASTE GENERATED'!$L$21*C14","v":0},0,null,null,0.17599999999999999]
[10,"Deșeuri de ambalaje din plastic",null,{"$f":"'2. TOTAL WASTE COLLECTED '!$H$21*C15","v":0},{"$f":"'3. TOTAL WASTE GENERATED'!$L$21*C15","v":0},0,null,null,0.129]
[11,"Pungi de plastic",null,{"$f":"'2. TOTAL WASTE COLLECTED '!$H$21*C16","v":0},{"$f":"'3. TOTAL WASTE GENERATED'!$L$21*C16","v":0},0,null,null,0.224]
[12,"Plastic dur",null,{"$f":"'2. TOTAL WASTE COLLECTED '!$H$21*C17","v":0},{"$f":"'3. TOTAL WASTE GENERATED'!$L$21*C17","v":0},0,null,null,0.1]
[13,"Textile",null,{"$f":"'2. TOTAL WASTE COLLECTED '!$H$21*C18","v":0},{"$f":"'3. TOTAL WASTE GENERATED'!$L$21*C18","v":0},0]
[14,"Piele",null,{"$f":"'2. TOTAL WASTE COLLECTED '!$H$21*C19","v":0},{"$f":"'3. TOTAL WASTE GENERATED'!$L$21*C19","v":0},0]
[15,"Scutece",null,{"$f":"'2. TOTAL WASTE COLLECTED '!$H$21*C20","v":0},{"$f":"'3. TOTAL WASTE GENERATED'!$L$21*C20","v":0},0]
[16,"Elemente fine (<20mm)",null,{"$f":"'2. TOTAL WASTE COLLECTED '!$H$21*C21","v":0},{"$f":"'3. TOTAL WASTE GENERATED'!$L$21*C21","v":0},0]
[null,"TOTAL",{"$f":"SUM(C6:C21)","v":0},{"$f":"SUM(D6:D21)","v":0},{"$f":"SUM(E6:E21)","v":0},{"$f":"SUM(F6:F21)","v":0}]
[]
[null,"Acasă ",null,null,null,"Note:  "]

{"sheet":"5. LANDFILL DEPOSITING","index":5,"n_rows":34,"n_cols":18,"rows_kept":34,"cut":false,"hidden":true,"merged":[[33,1,34,2],[27,1,27,2],[26,1,26,2],[28,1,28,2],[29,1,29,2],[30,1,30,2],[0,5,0,6],[1,1,1,3],[0,1,0,3],[25,1,25,2],[24,6,24,7],[3,1,3,10],[24,1,24,2],[25,5,31,10],[31,1,31,2],[0,8,0,25],[1,8,1,16]]}
[null,{"$f":"'2. TOTAL WASTE COLLECTED '!B1","v":"MUNICIPALITATEA"},null,null,{"$f":"'2. TOTAL WASTE COLLECTED '!C1","v":"Perioada datelor - ANUL"},{"$f":"'4. WASTE MORPHOLOGY'!E1","v":0},null,null,"Această fișă de lucru este completată / utilizată numai dacă nu există nicio separare a deșeurilor în municipalitate. Vă rugăm să consultați Manualul de utilizare"]
[null,{"$f":"'2. TOTAL WASTE COLLECTED '!B2","v":0},null,null,null,null,null,null,"Există o separare a deșeurilor în municipalitate?",null,null,null,null,null,null,null,null,"Yes"]
[]
[null,"DEŞEURI MUNICIPALE DEPOZITATE ŞI DURATA DE FUNCȚIONARE A DEPOZITULUI DE DEŞEURI FĂRĂ SEPARARE ORGANIZATĂ"]
[null,1,2,3,4,5,6,7,8,9,10]
[null,"STRUCTURA DEȘEURILOR MUNICIPALE COLECTATE ÎN AMESTEC ",{"$f":"'4. WASTE MORPHOLOGY'!C5","v":"Conținutul mediu estimat"},"Cantitățile de deșeuri colectate, în tone","Deșeuri colectate depozitate în depozite tradiționale de deșeri, % din total","Cantitățile de deșeuri colectate depozitate în depozite tradițioinale de deșeuri, în tone","Deşeuri colectate depozitate (în depozite ecologice de deşeuri), % din total","Deșeuri colectate depozitate (în depozite ecologice de deșeuri), în tone","Deşeuri colectate incinerate fără recuperarea energiei, % din total","Deşeuri colectate incinerate fără recuperarea energiei,în tone","Cantitatea totală de deșeuri depozitate (4+6)"]
[1,{"$f":"'4. WASTE MORPHOLOGY'!B6","v":"Deșeuri de grădină"},{"$f":"'4. WASTE MORPHOLOGY'!C6","v":0},{"$f":"'2. TOTAL WASTE COLLECTED '!$H$21*C7","v":0},null,{"$f":"D7*E7","v":0},null,{"$f":"D7*G7","v":0},null,{"$f":"D7*I7","v":0},{"$f":"E7+G7+I7","v":0}]
[2,{"$f":"'4. WASTE MORPHOLOGY'!B7","v":"Alte deseuri biodegradabile"},{"$f":"'4. WASTE MORPHOLOGY'!C7","v":0},{"$f":"'2. TOTAL WASTE COLLECTED '!$H$21*C8","v":0},null,{"$f":"D8*E8","v":0},null,{"$f":"D8*G8","v":0},null,0,0]
[3,{"$f":"'4. WASTE MORPHOLOGY'!B8","v":"Hârtie"},{"$f":"'4. WASTE MORPHOLOGY'!C8","v":0},{"$f":"'2. TOTAL WASTE COLLECTED '!$H$21*C9","v":0},null,0,null,0,null,0,0]
[4,{"$f":"'4. WASTE MORPHOLOGY'!B9","v":"Sticlă"},{"$f":"'4. WASTE MORPHOLOGY'!C9","v":0},{"$f":"'2. TOTAL WASTE COLLECTED '!$H$21*C10","v":0},null,0,null,0,null,0,0]
[5,{"$f":"'4. WASTE MORPHOLOGY'!B10","v":"Carton"},{"$f":"'4. WASTE MORPHOLOGY'!C10","v":0},{"$f":"'2. TOTAL WASTE COLLECTED '!$H$21*C11","v":0},null,0,null,0,null,0,0]
[6,{"$f":"'4. WASTE MORPHOLOGY'!B11","v":"Carton cu ceară"},{"$f":"'4. WASTE MORPHOLOGY'!C11","v":0},{"$f":"'2. TOTAL WASTE COLLECTED '!$H$21*C12","v":0},null,0,null,0,null,0,0]
[7,{"$f":"'4. WASTE MORPHOLOGY'!B12","v":"Carton cu aluminiu"},{"$f":"'4. WASTE MORPHOLOGY'!C12","v":0},{"$f":"'2. TOTAL WASTE COLLECTED '!$H$21*C13","v":0},null,0,null,0,null,0,0]
[8,{"$f":"'4. WASTE MORPHOLOGY'!B13","v":"Metal- ambalaje și altele"},{"$f":"'4. WASTE MORPHOLOGY'!C13","v":0},{"$f":"'2. TOTAL WASTE COLLECTED '!$H$21*C14","v":0},null,0,null,0,null,0,0]
[9,{"$f":"'4. WASTE MORPHOLOGY'!B14","v":"Metal- cutii de aluminiu"},{"$f":"'4. WASTE MORPHOLOGY'!C14","v":0},{"$f":"'2. TOTAL WASTE COLLECTED '!$H$21*C15","v":0},null,0,null,0,null,0,0]
[10,{"$f":"'4. WASTE MORPHOLOGY'!B15","v":"Deșeuri de ambalaje din plastic"},{"$f":"'4. WASTE MORPHOLOGY'!C15","v":0},{"$f":"'2. TOTAL WASTE COLLECTED '!$H$21*C16","v":0},null,0,null,0,null,0,0]
[11,{"$f":"'4. WASTE MORPHOLOGY'!B16","v":"Pungi de plastic"},{"$f":"'4. WASTE MORPHOLOGY'!C16","v":0},{"$f":"'2. TOTAL WASTE COLLECTED '!$H$21*C17","v":0},null,0,null,0,null,0,0]
[12,{"$f":"'4. WASTE MORPHOLOGY'!B17","v":"Plastic dur"},{"$f":"'4. WASTE MORPHOLOGY'!C17","v":0},{"$f":"'2. TOTAL WASTE COLLECTED '!$H$21*C18","v":0},null,0,null,0,null,0,0]
[13,{"$f":"'4. WASTE MORPHOLOGY'!B18","v":"Textile"},{"$f":"'4. WASTE MORPHOLOGY'!C18","v":0},{"$f":"'2. TOTAL WASTE COLLECTED '!$H$21*C19","v":0},null,0,null,0,null,0,0]
[14,{"$f":"'4. WASTE MORPHOLOGY'!B19","v":"Piele"},{"$f":"'4. WASTE MORPHOLOGY'!C19","v":0},{"$f":"'2. TOTAL WASTE COLLECTED '!$H$21*C20","v":0},null,0,null,0,null,0,0]
[15,{"$f":"'4. WASTE MORPHOLOGY'!B20","v":"Scutece"},{"$f":"'4. WASTE MORPHOLOGY'!C20","v":0},{"$f":"'2. TOTAL WASTE COLLECTED '!$H$21*C21","v":0},null,0,null,0,null,0,0]
[16,{"$f":"'4. WASTE MORPHOLOGY'!B21","v":"Elemente fine (<20mm)"},{"$f":"'4. WASTE MORPHOLOGY'!C21","v":0},{"$f":"'2. TOTAL WASTE COLLECTED '!$H$21*C22","v":0},null,0,null,0,null,0,0]
[null,"TOTAL ANNUALLY",{"$f":"'4. WASTE MORPHOLOGY'!C22","v":0},{"$f":"SUM(D7:D22)","v":0},null,{"$f":"SUM(F7:F22)","v":0},null,{"$f":"SUM(H7:H22)","v":0},null,{"$f":"SUM(J7:J22)","v":0},{"$f":"F23+H23","v":0}]
[null,"% din Total",null,null,null,{"$f":"F23/D23","v":{"$error":"#DIV/0!"}},null,{"$f":"H23/D23","v":{"$error":"#DIV/0!"}},null,{"$f":"J23/D23","v":{"$error":"#DIV/0!"}},{"$f":"F24+H24+J24","v":{"$error":"#DIV/0!"}}]
[null,"Durata de funcționare a depozitului de deșeuri (tradițional sau ecologic)"]
[17,"Numărul de zile de funcționare pe an",null,null,null," Note:"]
[18,"Cantitatea medie de deșeuri depozitate fără incinerare, în tone pe zi",null,{"$f":"D23/D26","v":{"$error":"#DIV/0!"}}]
[19,"Capacitatea Totală proiectată a depozitului de deșeuri, în tone"]
[20,"Capacitatea depozitului de deşeuri actual utilizată până în prezent"]
[21,"Capacitatea rămasă, în tone",null,{"$f":"D28*(1-D29)","v":0}]
[22,"Ani rămași la rata actuală de depozitare cu incinerarea deșeurilor",null,{"$f":"D30/K23","v":{"$error":"#DIV/0!"}}]
[23,"Ani rămași la rata actuală de depozitare fără incinerarea deșeurilor",null,{"$f":"D30/D23","v":{"$error":"#DIV/0!"}}]
[]
[null,"Acasă "]

{"sheet":"6. WASTE RECOVERY ","index":6,"n_rows":42,"n_cols":25,"rows_kept":42,"cut":false,"hidden":false,"merged":[[4,0,5,1],[24,1,24,4],[1,1,1,4],[24,22,24,24],[0,1,0,3],[23,23,23,24],[4,23,5,24],[22,23,22,24],[22,0,22,1],[3,3,3,22],[23,0,23,1],[22,16,23,16],[1,8,1,16],[0,8,0,24],[41,4,61,19],[34,1,36,3],[25,16,25,24],[22,20,23,20],[22,18,23,18],[22,6,23,6],[22,8,23,8],[22,4,23,4]]}
[null,{"$f":"'2. TOTAL WASTE COLLECTED '!B1","v":"MUNICIPALITATEA"},null,null,{"$f":"'5. LANDFILL DEPOSITING'!E1","v":"Perioada datelor - ANUL"},{"$f":"'5. LANDFILL DEPOSITING'!F1:G1","v":0},null,null,"Această fișă de lucru este completată / utilizată numai dacă nu există nicio separare a deșeurilor în municipalitate. Vă rugăm să consultați Manualul de utilizare"]
[null,{"$f":"'2. TOTAL WASTE COLLECTED '!B2","v":0},null,null,null,null,null,null,"Există o separare a deșeurilor în municipalitate?",null,null,null,null,null,null,null,null,"Yes"]
[]
[null,null,null,"Separare - Deșeuri municipale separate și deșeuri depozitate - Deșeuri recuperate, tratate și perioada de viață a depozitului de deșeuri"]
["STRUCTURA DEȘEURILOR MUNICIPALE COLECTATE ÎN AMESTEC ",null,null,1,2,3,4,5,6,7,8,9,10,11,12,null,13,14,15,16,17,18,19]
[null,null,"Estimated Average Content ","Cantitățile de deșeuri colectate, în tone","Deşeuri municipale separate la sursă, % din total","Cantitățile de deșeuri municipale separate la sursă, în tone","Deşeuri colectate separate la locul de depozitare, % din total","Cantitățile de deșeuri separate la depozitul de deșeuri, în tone","Deșeuri separate, % din cantitatea totală colectată","Cantitățile de deșeuri separate, în tone","Structura deșeurilor separate (din total)","Deşeuri colectate stocate în depozitele de deşeuri, % din total","Cantităţile de deşeuri colectate depuse în depozitele de deşeuri, în tone","Structura deșeurilor depozitate după separare, % din total","% suma deșeurilor separate și depozitate",null,"Deşeuri separate comercializate pentru reciclare sau în stocuri, % din totalul deșeurilor separate","Deșeuri separate reciclate și comercializate, în tone "," Deşeuri separate incinerate cu sau"," Deşeuri separate incinerate cu sau fără recuperarea energiei, în tone","% deșeurilor separate compostate, din totalul cantității separate ","Deșeuri separate compostate, în tone","% total de deșeuri separate"]
[1,{"$f":"'4. WASTE MORPHOLOGY'!B6","v":"Deșeuri de grădină"},{"$f":"'4. WASTE MORPHOLOGY'!C6","v":0},{"$f":"'2. TOTAL WASTE COLLECTED '!$H$21*C7","v":0},null,{"$f":"D7*E7","v":0},null,{"$f":"D7*G7","v":0},{"$f":"E7+G7","v":0},{"$f":"F7+H7","v":0},{"$f":"J7/J$23","v":{"$error":"#DIV/0!"}},null,{"$f":"D7*L7","v":0},{"$f":"M7/M$23","v":{"$error":"#DIV/0!"}},{"$f":"E7+G7+L7","v":0},null,null,{"$f":"(F7+H7)*Q7","v":0},null,{"$f":"(H7+F7)*S7","v":0},null,{"$f":"(F7+H7)*U7","v":0},{"$f":"Q7+S7+U7","v":0},1,{"$f":"'4. WASTE MORPHOLOGY'!B6","v":"Deșeuri de grădină"}]
[2,{"$f":"'4. WASTE MORPHOLOGY'!B7","v":"Alte deseuri biodegradabile"},{"$f":"'4. WASTE MORPHOLOGY'!C7","v":0},{"$f":"'2. TOTAL WASTE COLLECTED '!$H$21*C8","v":0},null,{"$f":"D8*E8","v":0},null,{"$f":"D8*G8","v":0},{"$f":"E8+G8","v":0},{"$f":"F8+H8","v":0},{"$f":"J8/J$23","v":{"$error":"#DIV/0!"}},null,{"$f":"D8*L8","v":0},{"$f":"M8/M$23","v":{"$error":"#DIV/0!"}},0,null,null,0,null,{"$f":"(H8+F8)*S8","v":0},null,{"$f":"(F8+H8)*U8","v":0},{"$f":"Q8+S8+U8","v":0},2,{"$f":"'4. WASTE MORPHOLOGY'!B7","v":"Alte deseuri biodegradabile"}]
[3,{"$f":"'4. WASTE MORPHOLOGY'!B8","v":"Hârtie"},{"$f":"'4. WASTE MORPHOLOGY'!C8","v":0},{"$f":"'2. TOTAL WASTE COLLECTED '!$H$21*C9","v":0},null,0,null,0,0,0,{"$error":"#DIV/0!"},null,0,{"$error":"#DIV/0!"},0,null,null,0,null,0,null,0,0,3,{"$f":"'4. WASTE MORPHOLOGY'!B8","v":"Hârtie"}]
[4,{"$f":"'4. WASTE MORPHOLOGY'!B9","v":"Sticlă"},{"$f":"'4. WASTE MORPHOLOGY'!C9","v":0},{"$f":"'2. TOTAL WASTE COLLECTED '!$H$21*C10","v":0},null,0,null,0,0,0,{"$error":"#DIV/0!"},null,0,{"$error":"#DIV/0!"},0,null,null,0,null,0,null,0,0,4,{"$f":"'4. WASTE MORPHOLOGY'!B9","v":"Sticlă"}]
[5,{"$f":"'4. WASTE MORPHOLOGY'!B10","v":"Carton"},{"$f":"'4. WASTE MORPHOLOGY'!C10","v":0},{"$f":"'2. TOTAL WASTE COLLECTED '!$H$21*C11","v":0},null,0,null,0,0,0,{"$error":"#DIV/0!"},null,0,{"$error":"#DIV/0!"},0,null,null,0,null,0,null,0,0,5,{"$f":"'4. WASTE MORPHOLOGY'!B10","v":"Carton"}]
[6,{"$f":"'4. WASTE MORPHOLOGY'!B11","v":"Carton cu ceară"},{"$f":"'4. WASTE MORPHOLOGY'!C11","v":0},{"$f":"'2. TOTAL WASTE COLLECTED '!$H$21*C12","v":0},null,0,null,0,0,0,{"$error":"#DIV/0!"},null,0,{"$error":"#DIV/0!"},0,null,null,0,null,0,null,0,0,6,{"$f":"'4. WASTE MORPHOLOGY'!B11","v":"Carton cu ceară"}]
[7,{"$f":"'4. WASTE MORPHOLOGY'!B12","v":"Carton cu aluminiu"},{"$f":"'4. WASTE MORPHOLOGY'!C12","v":0},{"$f":"'2. TOTAL WASTE COLLECTED '!$H$21*C13","v":0},null,0,null,0,0,0,{"$error":"#DIV/0!"},null,0,{"$error":"#DIV/0!"},0,null,null,0,null,0,null,0,0,7,{"$f":"'4. WASTE MORPHOLOGY'!B12","v":"Carton cu aluminiu"}]
[8,{"$f":"'4. WASTE MORPHOLOGY'!B13","v":"Metal- ambalaje și altele"},{"$f":"'4. WASTE MORPHOLOGY'!C13","v":0},{"$f":"'2. TOTAL WASTE COLLECTED '!$H$21*C14","v":0},null,0,null,0,0,0,{"$error":"#DIV/0!"},null,0,{"$error":"#DIV/0!"},0,null,null,0,null,0,null,0,0,8,{"$f":"'4. WASTE MORPHOLOGY'!B13","v":"Metal- ambalaje și altele"}]
[9,{"$f":"'4. WASTE MORPHOLOGY'!B14","v":"Metal- cutii de aluminiu"},{"$f":"'4. WASTE MORPHOLOGY'!C14","v":0},{"$f":"'2. TOTAL WASTE COLLECTED '!$H$21*C15","v":0},null,0,null,0,0,0,{"$error":"#DIV/0!"},null,0,{"$error":"#DIV/0!"},0,null,null,0,null,0,null,0,0,9,{"$f":"'4. WASTE MORPHOLOGY'!B14","v":"Metal- cutii de aluminiu"}]
[10,{"$f":"'4. WASTE MORPHOLOGY'!B15","v":"Deșeuri de ambalaje din plastic"},{"$f":"'4. WASTE MORPHOLOGY'!C15","v":0},{"$f":"'2. TOTAL WASTE COLLECTED '!$H$21*C16","v":0},null,0,null,0,0,0,{"$error":"#DIV/0!"},null,0,{"$error":"#DIV/0!"},0,null,null,0,null,0,null,0,0,10,{"$f":"'4. WASTE MORPHOLOGY'!B15","v":"Deșeuri de ambalaje din plastic"}]
[11,{"$f":"'4. WASTE MORPHOLOGY'!B16","v":"Pungi de plastic"},{"$f":"'4. WASTE MORPHOLOGY'!C16","v":0},{"$f":"'2. TOTAL WASTE COLLECTED '!$H$21*C17","v":0},null,0,null,0,0,0,{"$error":"#DIV/0!"},null,0,{"$error":"#DIV/0!"},0,null,null,0,null,0,null,0,0,11,{"$f":"'4. WASTE MORPHOLOGY'!B16","v":"Pungi de plastic"}]
[12,{"$f":"'4. WASTE MORPHOLOGY'!B17","v":"Plastic dur"},{"$f":"'4. WASTE MORPHOLOGY'!C17","v":0},{"$f":"'2. TOTAL WASTE COLLECTED '!$H$21*C18","v":0},null,0,null,0,0,0,{"$error":"#DIV/0!"},null,0,{"$error":"#DIV/0!"},0,null,null,0,null,0,null,0,0,12,{"$f":"'4. WASTE MORPHOLOGY'!B17","v":"Plastic dur"}]
[13,{"$f":"'4. WASTE MORPHOLOGY'!B18","v":"Textile"},{"$f":"'4. WASTE MORPHOLOGY'!C18","v":0},{"$f":"'2. TOTAL WASTE COLLECTED '!$H$21*C19","v":0},null,0,null,0,0,{"$f":"F19+H19","v":0},{"$f":"J19/J$23","v":{"$error":"#DIV/0!"}},null,0,{"$error":"#DIV/0!"},0,null,null,0,null,0,null,0,0,13,{"$f":"'4. WASTE MORPHOLOGY'!B18","v":"Textile"}]
[14,{"$f":"'4. WASTE MORPHOLOGY'!B19","v":"Piele"},{"$f":"'4. WASTE MORPHOLOGY'!C19","v":0},{"$f":"'2. TOTAL WASTE COLLECTED '!$H$21*C20","v":0},null,0,null,0,0,0,{"$error":"#DIV/0!"},null,0,{"$error":"#DIV/0!"},0,null,null,0,null,0,null,0,0,14,{"$f":"'4. WASTE MORPHOLOGY'!B19","v":"Piele"}]
[15,{"$f":"'4. WASTE MORPHOLOGY'!B20","v":"Scutece"},{"$f":"'4. WASTE MORPHOLOGY'!C20","v":0},{"$f":"'2. TOTAL WASTE COLLECTED '!$H$21*C21","v":0},null,0,null,0,0,0,{"$error":"#DIV/0!"},null,0,{"$error":"#DIV/0!"},0,null,null,0,null,0,null,0,0,15,{"$f":"'4. WASTE MORPHOLOGY'!B20","v":"Scutece"}]
[16,{"$f":"'4. WASTE MORPHOLOGY'!B21","v":"Elemente fine (<20mm)"},{"$f":"'4. WASTE MORPHOLOGY'!C21","v":0},{"$f":"'2. TOTAL WASTE COLLECTED '!$H$21*C22","v":0},null,0,null,0,0,0,{"$error":"#DIV/0!"},null,0,{"$error":"#DIV/0!"},0,null,null,0,null,0,null,0,0,16,{"$f":"'4. WASTE MORPHOLOGY'!B21","v":"Elemente fine (<20mm)"}]
["TOTAL",null,{"$f":"SUM(C7:C22)","v":0},{"$f":"SUM(D7:D22)","v":0},null,{"$f":"SUM(F7:F22)","v":0},null,{"$f":"SUM(H7:H22)","v":0},null,{"$f":"SUM(J7:J22)","v":0},{"$error":"#DIV/0!"},null,{"$f":"SUM(M7:M22)","v":0},{"$f":"SUM(N7:N22)","v":{"$error":"#DIV/0!"}},{"$f":"F23+H23+M23","v":0},null,"din totalul deșeurilor separate",{"$f":"SUM(R7:R22)","v":0},"din totalul deșeurilor separate",{"$f":"SUM(T7:T22)","v":0},"din totalul deșeurilor separate",{"$f":"SUM(V7:V22)","v":0},{"$f":"R23+T23+V23","v":0},"TOTAL"]
["% din TOTAL",null,null,null,null,{"$f":"F23/D23","v":{"$error":"#DIV/0!"}},null,{"$f":"H23/D23","v":{"$error":"#DIV/0!"}},null,{"$f":"J23/D23","v":{"$error":"#DIV/0!"}},null,null,{"$f":"M23/D23","v":{"$error":"#DIV/0!"}},null,{"$f":"O23/D23","v":{"$error":"#DIV/0!"}},null,null,{"$f":"R23/(F23+H23)","v":{"$error":"#DIV/0!"}},null,{"$f":"T23/(F23+H23)","v":{"$error":"#DIV/0!"}},null,{"$f":"V23/(F23+H23)","v":{"$error":"#DIV/0!"}},{"$f":"R24+T24+V24","v":{"$error":"#DIV/0!"}},"% din TOTAL"]
[null,{"$f":"'5. LANDFILL DEPOSITING'!B25:C25","v":"Durata de funcționare a depozitului de deșeuri (tradițional sau ecologic)"}]
[17,"Nr. de zile de operare a depozitului de deșeuri pe an",null,null,null,null,null,null,null,null,null,null,null,null,null,null," "]
[18,"Cantitatea medie de deşeuri depozitate  înainte de separare, în tone pe zi",null,{"$f":"D23/D26","v":{"$error":"#DIV/0!"}}]
[19,"Cantitatea medie de deşeuri depozitate  după separare, în tone pe zi",null,{"$f":"M23/D26","v":{"$error":"#DIV/0!"}}]
[20,"Capacitatea totală proiectată a depozitului de deșeuri, în tone"]
[21,{"$f":"'5. LANDFILL DEPOSITING'!B29","v":"Capacitatea depozitului de deşeuri actual utilizată până în prezent"}]
[22,"Capacitatea rămasă, în tone",null,{"$f":"D29*(1-D30)","v":0}]
[23,"Durata de funcționare a depozitului de deșeuri - ani rămași după separare, reciclare și recuperare",null,{"$f":"D31/M23","v":{"$error":"#DIV/0!"}}]
[24,"Durata de funcționare a depozitului de deșeuri - ani rămași la rata actuală de depozitare fără separare sau incinerare",null,{"$f":"D31/D23","v":{"$error":"#DIV/0!"}}]
[]
[null,"Acasă "]
[]
[]
[]
[]
[]
[]
[null,null,null,null,"Note:  "]

{"sheet":"7. C&T COST COVERAGE","index":7,"n_rows":27,"n_cols":15,"rows_kept":27,"cut":false,"hidden":false,"merged":[[0,14,7,22],[1,8,1,11],[4,10,4,13],[26,3,37,9],[26,1,28,1],[22,2,22,3],[24,2,24,3],[0,6,0,7],[13,2,13,3],[14,2,14,3],[15,2,15,3],[12,2,12,3],[8,2,8,3],[9,2,9,3],[10,2,10,3],[11,2,11,3],[4,9,6,9],[18,2,18,3],[21,2,21,3],[23,2,23,3],[16,2,16,3],[20,2,20,3],[17,2,17,3],[7,6,7,9],[7,1,7,3],[19,2,19,3]]}
[null,{"$f":"'2. TOTAL WASTE COLLECTED '!B1","v":"MUNICIPALITATEA"},null,{"$f":"'2. TOTAL WASTE COLLECTED '!C1","v":"Perioada datelor - ANUL"},{"$f":"'2. TOTAL WASTE COLLECTED '!E1:F1","v":0},null,"ACOPERIREA SERVICIULUI DE COLECTARE ORGANIZATĂ A DEȘEURILOR",null,null,null,null,null,null,null,"Această fișă de lucru arată viabilitatea financiară a serviciului și este orientativă. O analiză mai detaliată a veniturilor și a cheltuielilor și a eficienței este necesară înainte ca tariful să fie schimbat."]
[null,{"$f":"'2. TOTAL WASTE COLLECTED '!B2","v":0},null,null,null,"a","Nr. total de locuitori sau gospodării",{"$f":"SUM(H3:H4)","v":0},{"$f":"IF(H2='2. TOTAL WASTE COLLECTED '!C5,\"Corespunde cu valoarea în Fișa 2- Total deșeuri colectat\",\"Does not Match Value in Sheet 2-Total Waste Collected\")","v":"Corespunde cu valoarea în Fișa 2- Total deșeuri colectat"}]
[null,{"$f":"'2. TOTAL WASTE COLLECTED '!B3","v":"Suprafața în km2"},{"$f":"'2. TOTAL WASTE COLLECTED '!C3","v":0},null,null,"b","Urban "]
[null,{"$f":"'2. TOTAL WASTE COLLECTED '!B4","v":"Populația totală"},{"$f":"'2. TOTAL WASTE COLLECTED '!C4","v":0},null,null,"c","Rural"]
[null,{"$f":"'2. TOTAL WASTE COLLECTED '!B5","v":"Nr. total de gospodării"},{"$f":"'2. TOTAL WASTE COLLECTED '!C5","v":0},null,null,"d","Nr. total  de locuitori/gospodării deservite",{"$f":"SUM(H6:H7)","v":0},{"$f":"H5/H2","v":{"$error":"#DIV/0!"}},"Acoperirea serviciului",{"$f":"IF(H5='2. TOTAL WASTE COLLECTED '!C10,\"Corespunde cu valoarea în Fișa 2- Total deșeuri colectat\",\"Does not Match Value in Sheet 2-Total Waste Collected\")","v":"Corespunde cu valoarea în Fișa 2- Total deșeuri colectat"}]
[null,{"$f":"'2. TOTAL WASTE COLLECTED '!B6","v":"Nr. mediu de pembri per gospodărie"},{"$f":"'2. TOTAL WASTE COLLECTED '!C6","v":{"$error":"#DIV/0!"}},null,null,"e","Urban ",null,{"$f":"H6/H3","v":{"$error":"#DIV/0!"}}]
[null,null,null,null,null,"f","Rural",null,{"$f":"H7/H4","v":{"$error":"#DIV/0!"}}]
[null,"DATE GENERALE ȘI FINANCIARE",null,null,null,null,"TARIFE"]
[1,"Compania de utilități publice - Numele și locația Operatorului  ",null,null,null,1,"Utilizator final deserivit ","Tariful actual. Specificaţi  politica de stabilire a tarifelor a utilizatorului final (per m2 sau m3 lunar, per kg / t, sau de altă natură), în Lei","Unități Billling","Tariful necesar pentru a realiza venituri egale cu cele realizate la un nivel de colectare de 100%, în lei","Indicatorul de creștere a tarifului"]
[2,"Principalele Activități și Servicii ",null,null,null,2,null,null,null,{"$f":"H10/$C$12","v":{"$error":"#DIV/0!"}},{"$f":"J10/H10","v":{"$error":"#DIV/0!"}}]
[3,"Ponderea veniturilor (în %) din gestionarea deşeurilor, în comparaţie cu veniturile totale",null,null,null,3,null,null,null,{"$error":"#DIV/0!"},{"$error":"#DIV/0!"}]
[4,"Procentajul plăților percepute, în comparaţie cu veniturile totale facturate",null,null,null,4,null,null,null,{"$error":"#DIV/0!"},{"$error":"#DIV/0!"}]
[5,"Veniturile anuale totale provenite din gestionarea deşeurilor municipale, în Lei",null,null,null,5,null,null,null,{"$error":"#DIV/0!"},{"$error":"#DIV/0!"}]
[6,"Cheltuielile totale anuale pentru gestionarea deşeurilor municipale (Costuri ale materialelor, Salarii, Amortizarea şi alte costuri), în legătură cu colectarea şi transportul deşeurilor, în lei",null,null,null,6,null,null,null,{"$error":"#DIV/0!"},{"$error":"#DIV/0!"}]
[7,"Profitul/pierderile operaționale anuale, în lei",{"$f":"C13-C14","v":0},null,null,7,null,null,null,{"$error":"#DIV/0!"},{"$error":"#DIV/0!"}]
[8,"Creşterea veniturilor necesară pentru a acoperi pierderile de operare / sau a profituri peste costurile de operare (semnul -)",{"$f":"C15/-C13","v":{"$error":"#DIV/0!"}},null,null,8,null,null,null,{"$error":"#DIV/0!"},{"$error":"#DIV/0!"}]
[9,"Reducerea necesară a cheltuielilor pentru a acoperi pierderile de operare (semnul -) / sau costuri de operare mai mici decît veniturile ",{"$f":"C15/C14","v":{"$error":"#DIV/0!"}},null,null,9,null,null,null,{"$error":"#DIV/0!"},{"$error":"#DIV/0!"}]
[10,"Cantitatea totală de deșeuri colectate anual, în tone",{"$f":"'2. TOTAL WASTE COLLECTED '!H21","v":0},null,null,10,null,null,null,{"$error":"#DIV/0!"},{"$error":"#DIV/0!"}]
[11,"Numărul total de angajați implicați în gestiunea deșeurilor solide, inlcusiv administrația",null,null,null,11,null,null,null,{"$error":"#DIV/0!"},{"$error":"#DIV/0!"}]
[12,"Numărul lucrătorilor angajaţi în mod direct și operativ în gestionarea deșeurilor solide",null,null,null,12,null,null,null,{"$error":"#DIV/0!"},{"$error":"#DIV/0!"}]
[13,"Raportul de angajare dintre personalul administrativ și lucrătorii operativi 1:",{"$f":"C20/(C19-C20)","v":{"$error":"#DIV/0!"}},null,null,13,null,null,null,{"$error":"#DIV/0!"},{"$error":"#DIV/0!"}]
[14,"Cantitatea de deșeuri colectate anual per angajat/tone ",{"$f":"C18/C19","v":{"$error":"#DIV/0!"}},null,null,14,null,null,null,{"$error":"#DIV/0!"},{"$error":"#DIV/0!"}]
[15,"Populație deservită per angajat din Gestionarea Deșeurilor Solide",{"$f":"(H5/C19)","v":{"$error":"#DIV/0!"}},null,null,15,null,null,null,{"$error":"#DIV/0!"},{"$error":"#DIV/0!"}]
[16,"Angajați în Gestionarea Deșeurilor Solide  per 1000 de locuitori deserviți ",{"$f":"1000/C23","v":{"$error":"#DIV/0!"}},null,null,16,null,null,null,{"$error":"#DIV/0!"},{"$error":"#DIV/0!"}]
[17,"Costul actual pentru colectarea și transportul unei tone de deșeuri, în lei",{"$f":"C14/C18","v":{"$error":"#DIV/0!"}},null,null,17,null,null,null,{"$error":"#DIV/0!"},{"$error":"#DIV/0!"}]
[]
[null,"Acasă ",null,"Note: "]

{"sheet":"8. INVESTMENT FINANCING","index":8,"n_rows":72,"n_cols":10,"rows_kept":72,"cut":false,"hidden":false,"merged":[[3,1,3,9],[71,1,73,1],[64,3,66,3],[64,6,66,6],[59,1,59,5]]}
[null,{"$f":"'2. TOTAL WASTE COLLECTED '!B1","v":"MUNICIPALITATEA"},null,{"$f":"'2. TOTAL WASTE COLLECTED '!C1","v":"Perioada datelor - ANUL"},{"$f":"'2. TOTAL WASTE COLLECTED '!E1:F1","v":0}]
[null,{"$f":"'2. TOTAL WASTE COLLECTED '!B2","v":0}]
[]
[null,"INVESTIȚII ÎN ECHIPAMENTE ȘI BUNURI "]
[]
[null,"NUMELE OPERATORULUI - COMPANIEI DE UTILITĂȚI PUBLICE",1,2,3,4,5,6,7,8]
[null,"Tipul de echipament pentru Colectarea și Transportul Deșeurilor Solide","Numărul de unități în funcțiune","Achiziții noi planificate ","Prețul de achiziție a noii unități, în Lei","Investiții necesare, în Lei","Rata de amortizare","Amortizarea anuală","Cheltuieli planificate pentru deservirea împrumuturilor, per annum","Amortizarea și deservirea împrumuturilor per An"]
[1,"Containere 120 l",null,null,null,{"$f":"D8*E8","v":0},null,{"$f":"F8*G8","v":0},null,{"$f":"H8+I8","v":0}]
[2,"Containere 240 l",null,null,null,{"$f":"D9*E9","v":0},null,{"$f":"F9*G9","v":0},null,{"$f":"H9+I9","v":0}]
[3,"Containere 660 l",null,null,null,{"$f":"D10*E10","v":0},null,{"$f":"F10*G10","v":0},null,{"$f":"H10+I10","v":0}]
[4,"Containere 770 l",null,null,null,{"$f":"D11*E11","v":0},null,{"$f":"F11*G11","v":0},null,{"$f":"H11+I11","v":0}]
[5,"Containere 1100 l",null,null,null,0,null,0,null,0]
[6,"Skip containere 3,5m3",null,null,null,0,null,0,null,0]
[7,"Skip containere 5m³",null,null,null,0,null,0,null,0]
[8,"Skip containere 7m³",null,null,null,0,null,0,null,0]
[9,"Hooklift container 2,5",null,null,null,0,null,0,null,0]
[10,"Hooklift container 5m³",null,null,null,0,null,0,null,0]
[11,"Hooklift container 10m³",null,null,null,0,null,0,null,0]
[12,"Hooklift container 25m³",null,null,null,0,null,0,null,0]
[13,"Hooklift container 35m³",null,null,null,0,null,0,null,0]
[14,null,null,null,null,0,null,0,null,0]
[15,null,null,null,null,0,null,0,null,0]
[16,"Alte Containere ",null,null,null,{"$f":"D23*E23","v":0},null,{"$f":"F23*G23","v":0},null,0]
[null,"Subtotal echipament de colectare",{"$f":"SUM(C8:C23)","v":0},{"$f":"SUM(D8:D23)","v":0},null,{"$f":"SUM(F8:F23)","v":0},null,{"$f":"SUM(H8:H23)","v":0},{"$f":"SUM(I8:I23)","v":0},{"$f":"SUM(J8:J23)","v":0}]
[1,"Camioane 8t",null,null,null,{"$f":"D25*E25","v":0},null,{"$f":"F25*G25","v":0},null,{"$f":"H25+I25","v":0}]
[2,"Camioane 12t",null,null,null,{"$f":"D26*E26","v":0},null,{"$f":"F26*G26","v":0},null,{"$f":"H26+I26","v":0}]
[3,"Vehicule „Rotopress”",null,null,null,{"$f":"D27*E27","v":0},null,{"$f":"F27*G27","v":0},null,{"$f":"H27+I27","v":0}]
[4,"Camioane Compactoare",null,null,null,{"$f":"D28*E28","v":0},null,{"$f":"F28*G28","v":0},null,{"$f":"H28+I28","v":0}]
[5,"Autobasculante",null,null,null,{"$f":"D29*E29","v":0},null,{"$f":"F29*G29","v":0},null,{"$f":"H29+I29","v":0}]
[6,"Flatbed Truck",null,null,null,0,null,0,null,0]
[7,"Camion pentru containere Skip",null,null,null,0,null,0,null,0]
[8,"Camione pentru contrainere Hooklift",null,null,null,0,null,0,null,0]
[9,"Vehicule cu încarcare laterală (Sideloader)",null,null,null,0,null,0,null,0]
[10,"Tractoare și remorci",null,null,null,0,null,0,null,0]
[11,"Alte Vehicule",null,null,null,{"$f":"D35*E35","v":0},null,{"$f":"F35*G35","v":0},null,0]
[null,"Subtotal echipament de transport ",{"$f":"SUM(C25:C35)","v":0},{"$f":"SUM(D25:D35)","v":0},null,{"$f":"SUM(F25:F35)","v":0},null,{"$f":"SUM(H25:H35)","v":0},{"$f":"SUM(I25:I35)","v":0},{"$f":"SUM(J25:J35)","v":0}]
[null,"TOTAL COLECTARE",null,null,null,{"$f":"F24+F36","v":0},null,{"$f":"H24+H36","v":0},{"$f":"I24+I36","v":0},{"$f":"J24+J36","v":0}]
[null,{"$f":"B6","v":"NUMELE OPERATORULUI - COMPANIEI DE UTILITĂȚI PUBLICE"},"1.1","2.1","3.1","4.1","5.1","6.1","7.1","8.1"]
[null,"Tratarea, reciclarea și recuperarea deșeurilor","Numărul de unități în funcțiune","Achiziții noi planificate ","Prețul de achiziție a noii unități, în Lei","Investiții necesare, în Lei","Rata de amortizare","Amortizarea anuală","Cheltuieli planificate pentru deservirea împrumuturilor, per annum","Amortizarea și deservirea împrumuturilor per An"]
[1,"Investigații, proiectare, autorizații",null,null,null,{"$f":"D40*E40","v":0},null,{"$f":"F40*G40","v":0},null,{"$f":"H40+I40","v":0}]
[2,"Achiziționarea terenului",null,null,null,{"$f":"D41*E41","v":0},null,{"$f":"F41*G41","v":0},null,{"$f":"H41+I41","v":0}]
[3,"Instalații mecanice",null,null,null,0,null,0,null,0]
[4,"Echipament mobil",null,null,null,0,null,0,null,0]
[5,"Construcții civile",null,null,null,0,null,0,null,0]
[6,null,null,null,null,0,null,0,null,0]
[7,"Alte costuri",null,null,null,0,null,0,null,{"$f":"H46+I46","v":0}]
[null,"Subtotal tratare",{"$f":"SUM(C40:C46)","v":0},null,null,{"$f":"SUM(F40:F46)","v":0},null,{"$f":"SUM(H40:H46)","v":0},{"$f":"SUM(I40:I46)","v":0},{"$f":"SUM(J40:J46)","v":0}]
[null,{"$f":"B6","v":"NUMELE OPERATORULUI - COMPANIEI DE UTILITĂȚI PUBLICE"},"1.2","2.2","3.2","4.2","5.2","6.2","7.2","8.2"]
[null,"Investiții în depozitul de deșeuri","Numărul de unități în funcțiune","Achiziții noi planificate ","Prețul de achiziție a noii unități, în Lei","Investiții necesare, în Lei","Rata de amortizare","Amortizarea anuală","Cheltuieli planificate pentru deservirea împrumuturilor, per annum","Amortizarea și deservirea împrumuturilor per An"]
[1,"Investigații, proiectare, autorizații",null,null,null,0,null,0,null,0]
[2,"Achiziționarea terenului",null,null,null,0,null,0,null,0]
[3,"Instalații mecanice",null,null,null,0,null,0,null,0]
[4,"Echipament mobil",null,null,null,0,null,0,null,0]
[5,"Construcții civile",null,null,null,{"$f":"D54*E54","v":0},null,{"$f":"F54*G54","v":0},null,{"$f":"H54+I54","v":0}]
[6,null,null,null,null,{"$f":"D55*E55","v":0},null,{"$f":"F55*G55","v":0},null,{"$f":"H55+I55","v":0}]
[7,"Alte costuri",null,null,null,{"$f":"D56*E56","v":0},null,{"$f":"F56*G56","v":0},null,{"$f":"H56+I56","v":0}]
[null,"Subtotal DEPOZIT DE DEȘEURI",{"$f":"SUM(C50:C56)","v":0},null,null,{"$f":"SUM(F50:F56)","v":0},null,{"$f":"SUM(H50:H56)","v":0},{"$f":"SUM(I50:I56)","v":0},{"$f":"SUM(J50:J56)","v":0}]
[null,"TOTAL TRATARE&ELIMINARE",null,null,null,{"$f":"F47+F57","v":0},null,{"$f":"H47+H57","v":0},{"$f":"I47+I57","v":0},{"$f":"J47+J57","v":0}]
[null,"GRAND TOTAL INVESTIȚII",null,null,null,{"$f":"SUM(F37,F58)","v":0},null,{"$f":"SUM(H37,H58)","v":0},{"$f":"SUM(I37,I58)","v":0},{"$f":"SUM(J37,J58)","v":0}]
[null,"CORECTAREA COSTURILOR DE COLECTARE, TRANSPORT ȘI DEPOZITARE"]
[1,"Cheltuieli anuale curente de colectare și transport , în Lei",{"$f":"'7. C&T COST COVERAGE'!C14:D14","v":0},null,"Cheltuieli curente anuale pentru colectarea, transportul, tratarea, recuperarea șu depozitarea deșeurilor, în Lei",{"$f":"C61","v":0}]
[2,"Cheltuieli anuale suplimentare (estimative) pentru echipamente de colectare ",{"$f":"J37","v":0},{"$f":"C62/$C$61","v":{"$error":"#DIV/0!"}},"Cheltuieli adiționale estimate pentru toate investițiile (cheltuieli capitale), în Lei",{"$f":"J59","v":0}]
[3,"Creştere anuală estimată a costurilor variabile de colectare şi transport, în lei",null,{"$f":"C63/$C$61","v":{"$error":"#DIV/0!"}},"Creştere anuală estimată a costurilor operative de tratare şi costuri operative ale depozitului de deşeuri, în total în Lei"]
[4,"Creştere anuală estimată a cheltuielilor",{"$f":"SUM(C62:C63)","v":0},{"$f":"C64/$C$61","v":{"$error":"#DIV/0!"}},"Creştere anuală estimată a cheltuielilor",{"$f":"SUM(F62:F63)","v":0},{"$f":"F64/$F$61","v":{"$error":"#DIV/0!"}}]
[5,"Cheltuieli anuale totale",{"$f":"SUM(C61:C63)","v":0},null,"Cheltuieli totale anuale estimate ",{"$f":"SUM(F61:F63)","v":0}]
[6,"Costul actual de colectare şi transport per tonă, în lei/tonă",{"$f":"'7. C&T COST COVERAGE'!C25:D25","v":{"$error":"#DIV/0!"}},null,{"$f":"B67","v":"Costul estimat de colectare și transport,inclusiv creșterile pentru investțiile în echipament, în lei/tonă"},{"$f":"C67","v":{"$error":"#DIV/0!"}}]
[7,"Costul estimat de colectare și transport,inclusiv creșterile pentru investțiile în echipament, în lei/tonă",{"$f":"C66*(1+D64)","v":{"$error":"#DIV/0!"}},null,"Creşterea estimată a cheltuielilor pentru investiţii în reciclarea, recuperarea şi depozitarea cantităţilor de deşeuri colectate, În lei/tona",{"$f":"F64/'2. TOTAL WASTE COLLECTED '!H21","v":{"$error":"#DIV/0!"}}]
[8,"Creșterea estimată a costurilor de colectare și transport al deșeurilor, în lei/tonă",{"$f":"C67-C66","v":{"$error":"#DIV/0!"}},{"$f":"C68/C66","v":{"$error":"#DIV/0!"}},"Costul total estimat al Gestionării Deșeurilor Solide (colectare, transport, tratare şi depozitarea deşeurilor), inlcusiv pentru investiții, în lei/tonă",{"$f":"F67+F66","v":{"$error":"#DIV/0!"}},{"$f":"F68/$F$69","v":{"$error":"#DIV/0!"}}]
[null,null,null,null,{"$f":"B66","v":"Costul actual de colectare şi transport per tonă, în lei/tonă"},{"$f":"C66","v":{"$error":"#DIV/0!"}}]
[null,null,null,null,"Creşterea estimată a cheltuielilor pentru investiţii în reciclare, recuperare şi depozitare, în lei/tonă ",{"$f":"F68-F69","v":{"$error":"#DIV/0!"}},{"$f":"F70/$F$69","v":{"$error":"#DIV/0!"}}]
[]
[null,"Acasă "]

{"sheet":"9. SW NARRATIVE INFO","index":9,"n_rows":175,"n_cols":8,"rows_kept":175,"cut":false,"hidden":false,"merged":[[26,2,26,4],[24,2,24,4],[29,4,29,5],[1,1,1,4],[0,1,0,4],[22,2,22,4],[154,3,154,4],[155,3,155,4],[166,3,166,4],[167,3,167,4],[168,3,168,4],[137,3,137,4],[138,3,138,4],[144,3,144,4],[131,3,131,4],[133,3,133,4],[57,2,57,4],[60,2,60,4],[134,3,134,4],[135,3,135,4],[132,3,132,4],[130,3,130,4],[62,2,62,4],[58,2,58,4],[174,1,176,1],[139,3,139,4],[140,3,140,4],[141,3,141,4],[143,3,143,4],[142,3,142,4],[165,3,165,4],[171,3,171,4],[145,3,145,4],[146,3,146,4],[147,3,147,4],[151,3,151,4],[152,3,152,4],[169,3,169,4],[170,3,170,4],[153,3,153,4]]}
[null,"INFORMAȚIE NARATIVĂ PRIVIND MANAGEMENTUL DEȘEURILOR MUNICIPALE "]
[null,{"$f":"'2. TOTAL WASTE COLLECTED '!B2:F2","v":0}]
[1,"Nivelul de colectarea a informației",null,"DA","NU"]
[null,null,"Municipiu"]
[null,null,"Oraș"]
[null,null,"Raion/județ, Regiune"]
[]
[2,"Tipul de colectare",null,"DA","NU"]
[null,null,"Tradițională"]
[null,null,"Colectarea separată a fracţiunilor de deşeuri"]
[null,null,"Colectarea separată a deșeurilor voluminoase"]
[]
[3,"Operațiuni de recuperare a deșeurilor",null,"DA","NU"]
[null,null,"Organizate"]
[null,null,"Neorganizate"]
[]
[4,"Locul de desfășurare a separării organizate ",null,"DA","NU"]
[null,null,"Domiciliu (la sursă)"]
[null,null,"Stradă"]
[null,null,"Depozitul de deșeuri"]
[null,null,"Alte"]
[]
[5,"Numele şi adresa operatorilor care colectează şi transportă deşeurile municipale"]
[]
[6,"Numele persoanei responsabile"]
[]
[7,"Ultima dată de intrare"]
[]
[]
[8,"VOLUMUL DE COLECTARE - Compania Locală de Utilitate Publică  (operatorul) de colectare şi transport a deşeurilor municipale","Echipament pentru colectarea și transportul deșeurilor la rampa de deșeuri","TIPUL","Capacitatea în m³/tone",null,"NUMĂRUL de unități"]
[null,null,"Camionoane „Rotopress”"]
[null,null,"Camioane compactoare"]
[null,null,"Camioane deschise"]
[null,null,"Tractoare",null,null,null,2]
[null,null,"Alte"]
[null,null,"Containere pentru reciclare"]
[null,null,"Containere 5 t"]
[null,null,"Alte"]
[null,null,"Containere pentru reciclare",null,null,null,"NUMĂRUL de unități","m³"]
[null,null,"Containere Skip  3,5m³",null,null,null,null,{"$f":"G40*E40","v":0}]
[null,null,"Containere Skip 5 m³",null,null,null,null,{"$f":"G41*E41","v":0}]
[null,null,"Containere Skip 7 m³",null,null,null,null,0]
[null,null,"Container Hooklift  2,5m³",null,null,null,null,0]
[null,null,"Container Hooklift  5 m³",null,null,null,null,0]
[null,null,"Container Hooklift  10 m³",null,null,null,null,0]
[null,null,"Container Hooklift 25 m³",null,null,null,null,0]
[null,null,"Container Hooklift  35 m³",null,null,null,null,0]
[null,null,"Containere 1.100 l",null,null,null,null,0]
[null,null,"Containere 660 l",null,null,null,null,0]
[null,null,"Containere 770 l",null,null,null,null,0]
[null,null,"Pubele  120 l",null,null,null,null,0]
[null,null,"Pubele 240 l",null,null,null,null,0]
[null,null,"Saci",null,null,null,null,0]
[null,null,"Alte",null,null,null,null,0]
[null,null,"SUMA Volumului de colectare furnizat, în m3",null,null,null,{"$f":"SUM(G40:G54)","v":0},{"$f":"SUM(H40:H54)","v":0}]
[]
[]
[9,"Locul de amplasare a depozitului de deșeuri – municipalitatea și numele locației, coordonatele geografice"]
[null,"Anul de start al depozitării deșeurilor"]
[]
[10,"Municipalitățile care lirează deșeuri la depozit"]
[]
[11,"Numele si adresa operatorului depozitului de deşeuri"]
[]
[12,"Informații privind depozitul de deșeuri",null,"DA","NU"]
[null,null,"Conform standardelor EU "]
[null,null,"Depozit tradițional de deșeuri"]
[null,"Depozitul de deșeuri - proprietatea","Publică"]
[null,null,"Privată"]
[null,null," Mixtă"]
[null,"Statutul regulatoriu al depozitului de deșeuri","Permis"]
[null,null,"Nepermis"]
[null,null,"Scutit"]
[null,null,"Propus"]
[null,null,"Illegal"]
[null,"Statutul operațional al depozitului de deșeuri","Planificat"]
[null,null,"Î construcție"]
[null,null,"Activ"]
[null,null,"Inactiv"]
[null,null,"În proces de reabilitare"]
[null,null,"Urmează să fie închis"]
[null,null,"Închis"]
[null,null,"Închis ecologic (Clean Closed)"]
[null,null,"Urmează să fie stabilit"]
[null,"Tipul operatorului depozitului de deșeuri","Federal"]
[null,null,"Statal"]
[null,null,"Regional"]
[null,null,"Oraș"]
[null,null,"Municipal"]
[null,null,"Privat"]
[null,null,"Raion/Județ"]
[null,"Infrastructura depozitului de deșeuri","Drum de acces"]
[null,null,"Drumuri interne"]
[null,null,"Apă"]
[null,null,"Canalizare"]
[null,null,"Electricitate"]
[null,null,"Colectarea gazului"]
[null,null,"Poduri pentru cântarirea vehiculelor"]
[null,null,"Echipament de spălare a vehiculelor"]
[null,"Mecanizarea depozitului de deșeuri","Buldozere"]
[null,null,"Compactoare"]
[null,null,"Alte - specificați "]
[null,"Dotarea depozitului cu echipament de protecție a mediului ","Drenaj"]
[null,null,"Canale pentru apa de suprafață "]
[null,null,"Colectarea levigatului"]
[null,null,"Sistem de purificare a apei"]
[null,null,"Acoperire şi compactare"]
[null,null,"Dezinfectare, extirpare"]
[null,null,"Alte"]
[null,"Tipul deșeurilor depozitate și tehnologiile de tratare la depozitul de deșeuri","Depozitarea tipurilor permise de deşeuri, fără tratament"]
[null,null,"Metale"]
[null,null,"Deșeuri de ambalaje"]
[null,null,"Deșeuri agricole"]
[null,null,"Deșeuri din construcții"]
[null,null,"Deşeuri electronice"]
[null,null,"Deşeurilor menajere periculoase"]
[null,null,"Deșeuri medicale"]
[null,null,"Deșeuri de origine animalieră"]
[null,null,"Cenuşă şi nămoluri"]
[null,null,"Pneuri"]
[null,null,"Acoperirea deșeurilor cu materiale inerte"]
[null,null,"Separarea deșeurilor la depozitul de deșeuri"]
[null,null,"Instalaţii pentru recuperarea/prelucrarea deşeurilor"]
[null,null,"Instalații și dotări pentru reciclare"]
[null,null,"Stație de compostare"]
[null,null,"Gazificare"]
[null,null,"Incinerare"]
[null,null,"Tratare combinată"]
[null,null,"Alte - specificați "]
[]
[null,"Geometria depozitului de deșeuri ","Lungimea în metri"]
[null,null,"Lățimea în metri"]
[null,null,"Suprafața în m2"]
[null,null,"Volumul în m3"]
[null,null,"Capacitatea totală a depozitului de deșeuri în m3"]
[null,null,"Capacitatea depozitului de deșeuri utilizată pînă în  2010, în m3"]
[]
[null,"Amplasarea depozitului de deșeuri în metri de la","Așezări locuite "]
[null,null,"Izvoare, râuri, lacuri"]
[null,null,"Surse de aprovizionare cu apă "]
[null,null,"Centre de sănătate sau spitale"]
[null,null,"Fabrici de produse alimentare"]
[null,null,"Infrastructura subterană"]
[null,null,"Conducte de gaz sau petrol"]
[null,null,"Stația de autobus sau tren "]
[null,null,"Aeroport"]
[null,null,"Depozit de materiale inflamabile"]
[null,null,"Ariile protejate"]
[]
[]
[null,"Finanțarea operațională pentru colectarea și transportul deșeurilor"]
[null,null,"Taxe de utilizare - tarife (a se specifica: pentru gospodării pe cap de locuitor, pe o gospodărie, kg/tonă sau m2, în lei)"]
[null,null,"Taxe de utilizare - tarife (a se specifica: pentru industrie şi comerţ, kg/tona, m2 sau de altă natură, în lei)"]
[null,null,"Separat pentru transport și colectare per m3 sau kg/t, în lei"]
[null,null,"Separat pentru depozitarea la depozitul de deșeuri per m3 sau kg/t în lei"]
[null,null,"O singură taxă pentru colectare și depozitare per m3 sau kg/t în lei"]
[]
[13,"Acoperirea totală a costurilor de colectare și transport la depozitul de deșeuri",null,"DA","NU"]
[null,null,"Tariful actual acoperă costurile operative"]
[null,null,"Tariful actual acoperă costurile operative, inclusiv amortizarea"]
[null,null,"Tariful actual acoperă toate costurile, inclusiv investiţiile/ întoarcerea împrumuturilor"]
[null,"Taxa de basculare şi alte cheltuieli pentru eliminarea deşeurilor în depozitele de deşeuri controlate","Tariful actual acoperă costurile operative"]
[null,null,"Tariful actual acoperă costurile operative, inclusiv amortizarea"]
[null,null,"Tariful actual acoperă toate costurile, inclusiv investiţiile/ întoarcerea împrumuturilor"]
[]
[14,"Finanțarea investiților","Fondul pentru mediu"]
[null,"Planul Local pentru finanţarea unui nou depozit ecologic sau a unui nou tip de gestionare a deşeurilor, în cifre absolute în lei sau în % din valoarea totală a investiției value","Donații Internaționale "]
[null,null,"Subvenții naționale"]
[null,null,"Bugetul local"]
[null,null,"Împrumuturi Directe"]
[null,null,"Investițiile sau participarea sectorului privat"]
[null,null,"Total",{"$f":"SUM(D166:E171)","v":0}]
[]
[]
[null,"Acasă "]